[Event "Titled Tuesday Blitz November 22 Early 2022"]
[White "Petrova, Irina"]
[Black "Ai, Evan"]
[WhiteFideId "14124122"]
[BlackFideId "2094770"]
[WhiteElo "2023"]
[BlackElo "1963"]
[Result "1-0"]
[Round "09"]
[TimeControl "180+1"]
[Date "2022.11.23"]
[WhiteClock "0:00:40"]
[BlackClock "0:00:10"]

1. e4 {[%clk 0:02:58]}  e5 {[%clk 0:02:56]} 2. Nf3 {[%clk 0:02:58]}  Nc6 {[%clk 0:02:55]} 3. Bb5 {[%clk 0:02:58]}  a6 {[%clk 0:02:51]} 4. Ba4 {[%clk 0:02:58]}  Nf6 {[%clk 0:02:46]} 5. d3 {[%clk 0:02:58]}  b5 {[%clk 0:02:43]} 6. Bb3 {[%clk 0:02:58]}  Bc5 {[%clk 0:02:44]} 7. Nc3 {[%clk 0:02:57]}  h6 {[%clk 0:02:43]} 8. Nd5 {[%clk 0:02:55]}  O-O {[%clk 0:02:41]} 9. c3 {[%clk 0:02:54]}  Bb7 {[%clk 0:02:40]} 10. Rg1 {[%clk 0:02:42]}  Ng4 {[%clk 0:02:36]} 11. d4 {[%clk 0:02:24]}  exd4 {[%clk 0:02:34]} 12. cxd4 {[%clk 0:02:25]}  Ba7 {[%clk 0:02:26]} 13. h3 {[%clk 0:02:21]}  Nf6 {[%clk 0:02:21]} 14. Nxf6+ {[%clk 0:02:20]}  Qxf6 {[%clk 0:02:22]} 15. Be3 {[%clk 0:02:19]}  Rfe8 {[%clk 0:02:19]} 16. e5 {[%clk 0:02:17]}  Qe7 {[%clk 0:02:03]} 17. Qd2 {[%clk 0:01:59]}  Nb4 {[%clk 0:01:51]} 18. Rc1 {[%clk 0:01:48]}  Be4 {[%clk 0:01:39]} 19. Kf1 {[%clk 0:01:35]}  d6 {[%clk 0:01:14]} 20. Qxb4 {[%clk 0:01:29]}  Bd3+ {[%clk 0:00:51]} 21. Ke1 {[%clk 0:01:27]}  c5 {[%clk 0:00:44]} 22. dxc5 {[%clk 0:01:23]}  dxc5 {[%clk 0:00:36]} 23. Bxc5 {[%clk 0:01:14]}  Qb7 {[%clk 0:00:19]} 24. Bxa7 {[%clk 0:01:10]}  Qxa7 {[%clk 0:00:17]} 25. Qc5 {[%clk 0:00:53]}  Qb7 {[%clk 0:00:10]} 26. Qd5 {[%clk 0:00:40]} 1-0


[Site "https://www.chess.com"]

[Event "Titled Tuesday Blitz November 22 Early 2022"]
[White "Pinheiro, Iung Alicio de O."]
[Black "Kuchava, Ana"]
[WhiteFideId "2104350"]
[BlackFideId "13605348"]
[WhiteElo "2283"]
[BlackElo "2001"]
[Result "1-0"]
[Round "09"]
[TimeControl "180+1"]
[Date "2022.11.23"]
[WhiteClock "0:01:07"]
[BlackClock "0:00:47"]

1. d4 {[%clk 0:03:00]}  d5 {[%clk 0:02:56]} 2. c4 {[%clk 0:02:59]}  dxc4 {[%clk 0:02:53]} 3. Nf3 {[%clk 0:02:58]}  Nf6 {[%clk 0:02:52]} 4. e3 {[%clk 0:02:57]}  c5 {[%clk 0:02:48]} 5. Bxc4 {[%clk 0:02:26]}  e6 {[%clk 0:02:46]} 6. O-O {[%clk 0:02:24]}  Nc6 {[%clk 0:02:37]} 7. Qe2 {[%clk 0:02:21]}  cxd4 {[%clk 0:02:35]} 8. Rd1 {[%clk 0:02:20]}  Be7 {[%clk 0:02:33]} 9. exd4 {[%clk 0:02:04]}  O-O {[%clk 0:02:31]} 10. Nc3 {[%clk 0:02:03]}  Nb4 {[%clk 0:02:30]} 11. Ne5 {[%clk 0:02:00]}  Nbd5 {[%clk 0:02:03]} 12. Rd3 {[%clk 0:01:59]}  Kh8 {[%clk 0:01:52]} 13. Rh3 {[%clk 0:01:57]}  Bd7 {[%clk 0:01:41]} 14. Bd3 {[%clk 0:01:53]}  Bc6 {[%clk 0:01:21]} 15. Ne4 {[%clk 0:01:23]}  Nxe4 {[%clk 0:01:12]} 16. Qxe4 {[%clk 0:01:16]}  g6 {[%clk 0:01:06]} 17. Nxg6+ {[%clk 0:01:09]}  fxg6 {[%clk 0:01:03]} 18. Qxg6 {[%clk 0:01:10]}  Nf6 {[%clk 0:00:46]} 19. Rxh7+ {[%clk 0:01:08]}  Nxh7 {[%clk 0:00:47]} 20. Qxh7# {[%clk 0:01:07]} 1-0


[Site "https://www.chess.com"]

[Event "Titled Tuesday Blitz November 22 Early 2022"]
[White "Pranav Anand"]
[Black "Goroshkov, Maksym"]
[WhiteFideId "46626786"]
[BlackFideId "14142716"]
[WhiteElo "2402"]
[BlackElo "2257"]
[Result "1-0"]
[Round "09"]
[TimeControl "180+1"]
[Date "2022.11.23"]
[WhiteClock "0:02:08"]
[BlackClock "0:01:06"]

1. Nf3 {[%clk 0:02:58]}  Nf6 {[%clk 0:02:58]} 2. g3 {[%clk 0:02:58]}  g6 {[%clk 0:02:59]} 3. Bg2 {[%clk 0:02:56]}  Bg7 {[%clk 0:03:00]} 4. O-O {[%clk 0:02:57]}  O-O {[%clk 0:03:00]} 5. c4 {[%clk 0:02:58]}  d5 {[%clk 0:03:00]} 6. cxd5 {[%clk 0:02:58]}  Nxd5 {[%clk 0:03:01]} 7. Nc3 {[%clk 0:02:58]}  Nxc3 {[%clk 0:03:01]} 8. bxc3 {[%clk 0:02:58]}  c5 {[%clk 0:03:01]} 9. h4 {[%clk 0:02:58]}  Nc6 {[%clk 0:03:01]} 10. Qc2 {[%clk 0:02:51]}  Bf5 {[%clk 0:02:59]} 11. e4 {[%clk 0:02:51]}  Bg4 {[%clk 0:02:59]} 12. d3 {[%clk 0:02:47]}  Qd7 {[%clk 0:02:53]} 13. Be3 {[%clk 0:02:44]}  b6 {[%clk 0:02:43]} 14. Nh2 {[%clk 0:02:43]}  Bh3 {[%clk 0:02:40]} 15. Rad1 {[%clk 0:02:44]}  Bxg2 {[%clk 0:02:39]} 16. Kxg2 {[%clk 0:02:44]}  Rad8 {[%clk 0:02:39]} 17. h5 {[%clk 0:02:44]}  gxh5 {[%clk 0:02:38]} 18. Nf3 {[%clk 0:02:42]}  Qg4 {[%clk 0:02:32]} 19. Rh1 {[%clk 0:02:42]}  Bf6 {[%clk 0:02:28]} 20. Rh2 {[%clk 0:02:38]}  h4 {[%clk 0:01:49]} 21. Nxh4 {[%clk 0:02:36]}  Ne5 {[%clk 0:01:46]} 22. f3 {[%clk 0:02:33]}  Qh5 {[%clk 0:01:40]} 23. Qe2 {[%clk 0:02:30]}  e6 {[%clk 0:01:29]} 24. g4 {[%clk 0:02:18]}  Qxh4 {[%clk 0:01:26]} 25. Rxh4 {[%clk 0:02:18]}  Bxh4 {[%clk 0:01:27]} 26. Rh1 {[%clk 0:02:17]}  Bf6 {[%clk 0:01:24]} 27. d4 {[%clk 0:02:16]}  Ng6 {[%clk 0:01:19]} 28. e5 {[%clk 0:02:14]}  cxd4 {[%clk 0:01:17]} 29. exf6 {[%clk 0:02:08]}  dxe3 {[%clk 0:01:17]} 30. Qxe3 {[%clk 0:02:09]}  Rfe8 {[%clk 0:01:06]} 31. Qh6 {[%clk 0:02:08]} 1-0


[Site "https://www.chess.com"]

[Event "Titled Tuesday Blitz November 22 Early 2022"]
[White "Pranav, V"]
[Black "Mrudul Dehankar"]
[WhiteFideId "25060783"]
[BlackFideId "25096990"]
[WhiteElo "2430"]
[BlackElo "2068"]
[Result "1-0"]
[Round "09"]
[TimeControl "180+1"]
[Date "2022.11.22"]
[WhiteClock "0:00:49"]
[BlackClock "0:00:01"]

1. e4 {[%clk 0:03:00]}  c6 {[%clk 0:02:50]} 2. d4 {[%clk 0:02:59]}  d5 {[%clk 0:02:49]} 3. e5 {[%clk 0:02:59]}  Bf5 {[%clk 0:02:49]} 4. c4 {[%clk 0:02:58]}  e6 {[%clk 0:02:48]} 5. Nc3 {[%clk 0:02:57]}  Bb4 {[%clk 0:02:48]} 6. Qb3 {[%clk 0:02:55]}  Qa5 {[%clk 0:02:47]} 7. Bd2 {[%clk 0:02:51]}  Ne7 {[%clk 0:02:41]} 8. Nf3 {[%clk 0:02:48]}  O-O {[%clk 0:02:22]} 9. Be2 {[%clk 0:02:43]}  dxc4 {[%clk 0:02:07]} 10. Bxc4 {[%clk 0:02:41]}  c5 {[%clk 0:01:39]} 11. dxc5 {[%clk 0:02:40]}  Nbc6 {[%clk 0:01:38]} 12. a3 {[%clk 0:02:28]}  Bxc3 {[%clk 0:01:14]} 13. Qxc3 {[%clk 0:02:17]}  Qxc5 {[%clk 0:01:10]} 14. b4 {[%clk 0:02:12]}  Qb6 {[%clk 0:01:08]} 15. O-O {[%clk 0:02:11]}  Rac8 {[%clk 0:01:07]} 16. Rac1 {[%clk 0:02:04]}  Nd5 {[%clk 0:00:52]} 17. Qb2 {[%clk 0:01:55]}  Nce7 {[%clk 0:00:45]} 18. Rfe1 {[%clk 0:01:46]}  Rc7 {[%clk 0:00:36]} 19. Bf1 {[%clk 0:01:41]}  Rfc8 {[%clk 0:00:33]} 20. Nd4 {[%clk 0:01:41]}  Rxc1 {[%clk 0:00:23]} 21. Rxc1 {[%clk 0:01:42]}  Rxc1 {[%clk 0:00:23]} 22. Bxc1 {[%clk 0:01:43]}  Bg6 {[%clk 0:00:23]} 23. Nb3 {[%clk 0:01:42]}  Qc7 {[%clk 0:00:20]} 24. Nc5 {[%clk 0:01:27]}  Nc6 {[%clk 0:00:19]} 25. f4 {[%clk 0:01:14]}  b6 {[%clk 0:00:14]} 26. Nb3 {[%clk 0:01:13]}  a5 {[%clk 0:00:15]} 27. b5 {[%clk 0:01:10]}  Nce7 {[%clk 0:00:11]} 28. Bd2 {[%clk 0:01:06]}  Qc2 {[%clk 0:00:05]} 29. Qxc2 {[%clk 0:01:05]}  Bxc2 {[%clk 0:00:06]} 30. Nd4 {[%clk 0:01:06]}  Be4 {[%clk 0:00:06]} 31. Kf2 {[%clk 0:01:05]}  Kf8 {[%clk 0:00:06]} 32. Nf3 {[%clk 0:01:04]}  Ke8 {[%clk 0:00:05]} 33. Nd4 {[%clk 0:00:56]}  Kd7 {[%clk 0:00:06]} 34. Nb3 {[%clk 0:00:57]}  f6 {[%clk 0:00:06]} 35. Bxa5 {[%clk 0:00:54]}  fxe5 {[%clk 0:00:04]} 36. fxe5 {[%clk 0:00:53]}  Bc2 {[%clk 0:00:03]} 37. Nd4 {[%clk 0:00:53]}  Ba4 {[%clk 0:00:01]} 38. Bd2 {[%clk 0:00:49]}  Ng6 {[%clk 0:00:01]} 39. Nc6 {[%clk 0:00:49]} 1-0


[Site "https://www.chess.com"]

[Event "Titled Tuesday Blitz November 22 Early 2022"]
[White "Rios Escobar, Adan"]
[Black "Berezin, Viktor"]
[WhiteFideId "3403645"]
[BlackFideId "14107872"]
[WhiteElo "2352"]
[BlackElo "2310"]
[Result "1-0"]
[Round "09"]
[TimeControl "180+1"]
[Date "2022.11.23"]
[WhiteClock "0:00:34"]
[BlackClock "0:02:29"]

1. d4 {[%clk 0:03:00]}  Nf6 {[%clk 0:02:54]} 2. g3 {[%clk 0:02:58]}  g6 {[%clk 0:02:54]} 3. Bg2 {[%clk 0:02:56]}  Bg7 {[%clk 0:02:54]} 4. e4 {[%clk 0:02:56]}  O-O {[%clk 0:02:54]} 5. Ne2 {[%clk 0:02:56]}  d6 {[%clk 0:02:55]} 6. O-O {[%clk 0:02:56]}  Nc6 {[%clk 0:02:55]} 7. Nbc3 {[%clk 0:02:56]}  e5 {[%clk 0:02:56]} 8. dxe5 {[%clk 0:02:54]}  dxe5 {[%clk 0:02:54]} 9. Bg5 {[%clk 0:02:54]}  Qxd1 {[%clk 0:02:53]} 10. Rfxd1 {[%clk 0:02:52]}  Be6 {[%clk 0:02:47]} 11. Nd5 {[%clk 0:02:47]}  Bxd5 {[%clk 0:02:47]} 12. exd5 {[%clk 0:02:48]}  Nb4 {[%clk 0:02:45]} 13. a3 {[%clk 0:02:36]}  Nxc2 {[%clk 0:02:41]} 14. Rac1 {[%clk 0:02:35]}  Nd4 {[%clk 0:02:42]} 15. Nxd4 {[%clk 0:02:35]}  exd4 {[%clk 0:02:43]} 16. Rxc7 {[%clk 0:02:31]}  h6 {[%clk 0:02:40]} 17. Bxf6 {[%clk 0:02:28]}  Bxf6 {[%clk 0:02:41]} 18. Rxb7 {[%clk 0:02:23]}  Rab8 {[%clk 0:02:41]} 19. Rxb8 {[%clk 0:01:50]}  Rxb8 {[%clk 0:02:42]} 20. b4 {[%clk 0:01:02]}  a5 {[%clk 0:02:41]} 21. bxa5 {[%clk 0:00:59]}  Ra8 {[%clk 0:02:39]} 22. d6 {[%clk 0:00:37]}  Rd8 {[%clk 0:02:29]} 23. a6 {[%clk 0:00:34]} 1-0


[Site "https://www.chess.com"]

[Event "Titled Tuesday Blitz November 22 Early 2022"]
[White "Rose, Felix"]
[Black "Begunov, Konstantin"]
[WhiteFideId "5105722"]
[BlackFideId "4118510"]
[WhiteElo "2039"]
[BlackElo "2140"]
[Result "1-0"]
[Round "09"]
[TimeControl "180+1"]
[Date "2022.11.23"]
[WhiteClock "0:00:14"]
[BlackClock "0:00:01"]

1. e4 {[%clk 0:02:59]}  c5 {[%clk 0:02:59]} 2. Nf3 {[%clk 0:02:59]}  d6 {[%clk 0:03:00]} 3. d4 {[%clk 0:03:00]}  cxd4 {[%clk 0:03:00]} 4. Nxd4 {[%clk 0:03:00]}  Nf6 {[%clk 0:03:00]} 5. Nc3 {[%clk 0:03:01]}  a6 {[%clk 0:03:00]} 6. Be3 {[%clk 0:03:01]}  Ng4 {[%clk 0:02:59]} 7. Bc1 {[%clk 0:03:01]}  Nc6 {[%clk 0:03:00]} 8. h3 {[%clk 0:02:56]}  Qb6 {[%clk 0:02:59]} 9. hxg4 {[%clk 0:02:33]}  Qxd4 {[%clk 0:02:58]} 10. Bd3 {[%clk 0:02:26]}  e6 {[%clk 0:02:07]} 11. Be3 {[%clk 0:02:05]}  Qb4 {[%clk 0:02:06]} 12. a3 {[%clk 0:01:26]}  Qxb2 {[%clk 0:01:37]} 13. Na4 {[%clk 0:01:26]}  Qf6 {[%clk 0:01:37]} 14. Nb6 {[%clk 0:00:59]}  Rb8 {[%clk 0:01:35]} 15. g5 {[%clk 0:00:41]}  Qc3+ {[%clk 0:01:18]} 16. Kf1 {[%clk 0:00:20]}  Ne5 {[%clk 0:01:13]} 17. f4 {[%clk 0:00:14]}  Nxd3 {[%clk 0:00:55]} 18. cxd3 {[%clk 0:00:13]}  Bd7 {[%clk 0:00:55]} 19. Nxd7 {[%clk 0:00:08]}  Kxd7 {[%clk 0:00:54]} 20. Rc1 {[%clk 0:00:09]}  Qxa3 {[%clk 0:00:54]} 21. Kf2 {[%clk 0:00:09]}  Be7 {[%clk 0:00:43]} 22. Ra1 {[%clk 0:00:09]}  Qb4 {[%clk 0:00:37]} 23. Rb1 {[%clk 0:00:09]}  Qa5 {[%clk 0:00:35]} 24. Qc2 {[%clk 0:00:08]}  Rhc8 {[%clk 0:00:31]} 25. Qb2 {[%clk 0:00:08]}  Bf8 {[%clk 0:00:19]} 26. Rxh7 {[%clk 0:00:09]}  b5 {[%clk 0:00:19]} 27. g6 {[%clk 0:00:08]}  fxg6 {[%clk 0:00:18]} 28. Rxg7+ {[%clk 0:00:08]}  Bxg7 {[%clk 0:00:19]} 29. Qxg7+ {[%clk 0:00:09]}  Kd8 {[%clk 0:00:13]} 30. Rh1 {[%clk 0:00:09]}  Rc2+ {[%clk 0:00:11]} 31. Kf3 {[%clk 0:00:09]}  Kc8 {[%clk 0:00:09]} 32. Rh8+ {[%clk 0:00:09]}  Qd8 {[%clk 0:00:10]} 33. Rxd8+ {[%clk 0:00:09]}  Kxd8 {[%clk 0:00:11]} 34. Qxg6 {[%clk 0:00:09]}  Rbc8 {[%clk 0:00:10]} 35. Qxe6 {[%clk 0:00:09]}  Kc7 {[%clk 0:00:11]} 36. Qe7+ {[%clk 0:00:09]}  Kc6 {[%clk 0:00:09]} 37. f5 {[%clk 0:00:10]}  Rc3 {[%clk 0:00:08]} 38. f6 {[%clk 0:00:09]}  Rxd3 {[%clk 0:00:08]} 39. f7 {[%clk 0:00:09]}  d5 {[%clk 0:00:07]} 40. exd5+ {[%clk 0:00:09]}  Kxd5 {[%clk 0:00:07]} 41. f8=Q {[%clk 0:00:09]}  Rxf8+ {[%clk 0:00:06]} 42. Qxf8 {[%clk 0:00:10]}  b4 {[%clk 0:00:06]} 43. Qd8+ {[%clk 0:00:11]}  Kc4 {[%clk 0:00:05]} 44. Qc8+ {[%clk 0:00:11]}  Kb3 {[%clk 0:00:05]} 45. Qxa6 {[%clk 0:00:12]}  Rc3 {[%clk 0:00:04]} 46. Qe6+ {[%clk 0:00:11]}  Kc2 {[%clk 0:00:05]} 47. g3 {[%clk 0:00:12]}  b3 {[%clk 0:00:05]} 48. Qe4+ {[%clk 0:00:12]}  Kb2 {[%clk 0:00:02]} 49. Kf4 {[%clk 0:00:13]}  Ka2 {[%clk 0:00:02]} 50. Bd4 {[%clk 0:00:13]}  Rc2 {[%clk 0:00:02]} 51. Qa8+ {[%clk 0:00:13]}  Kb1 {[%clk 0:00:01]} 52. Qa1# {[%clk 0:00:14]} 1-0


[Site "https://www.chess.com"]

[Event "Titled Tuesday Blitz November 22 Early 2022"]
[White "Spalir, Monika"]
[Black "Fabris, Alberto"]
[WhiteFideId "14609118"]
[BlackFideId "801348"]
[WhiteElo "2032"]
[BlackElo "2158"]
[Result "1-0"]
[Round "09"]
[TimeControl "180+1"]
[Date "2022.11.23"]
[WhiteClock "0:00:05"]
[BlackClock "0:00:01"]

1. d4 {[%clk 0:02:59]}  Nf6 {[%clk 0:02:58]} 2. Nf3 {[%clk 0:02:58]}  e6 {[%clk 0:02:58]} 3. Bf4 {[%clk 0:02:58]}  c5 {[%clk 0:02:57]} 4. e3 {[%clk 0:02:57]}  b6 {[%clk 0:02:58]} 5. Nbd2 {[%clk 0:02:51]}  Be7 {[%clk 0:02:56]} 6. c3 {[%clk 0:02:38]}  O-O {[%clk 0:02:55]} 7. Bd3 {[%clk 0:02:14]}  d5 {[%clk 0:02:53]} 8. e4 {[%clk 0:01:59]}  dxe4 {[%clk 0:02:50]} 9. Nxe4 {[%clk 0:01:59]}  Bb7 {[%clk 0:02:49]} 10. Nxf6+ {[%clk 0:01:34]}  Bxf6 {[%clk 0:02:48]} 11. dxc5 {[%clk 0:01:35]}  bxc5 {[%clk 0:02:46]} 12. O-O {[%clk 0:01:29]}  Nc6 {[%clk 0:02:44]} 13. Be4 {[%clk 0:01:21]}  Qb6 {[%clk 0:02:42]} 14. Qc2 {[%clk 0:01:17]}  g6 {[%clk 0:02:39]} 15. h4 {[%clk 0:01:12]}  Bg7 {[%clk 0:02:32]} 16. h5 {[%clk 0:01:11]}  Ne7 {[%clk 0:02:24]} 17. hxg6 {[%clk 0:01:06]}  hxg6 {[%clk 0:02:20]} 18. Ne5 {[%clk 0:00:35]}  Rad8 {[%clk 0:02:08]} 19. Rae1 {[%clk 0:00:29]}  Nf5 {[%clk 0:01:50]} 20. Bg5 {[%clk 0:00:17]}  Bxe4 {[%clk 0:01:32]} 21. Qxe4 {[%clk 0:00:17]}  Rd5 {[%clk 0:01:31]} 22. Ng4 {[%clk 0:00:15]}  f6 {[%clk 0:01:05]} 23. Bc1 {[%clk 0:00:15]}  Kf7 {[%clk 0:01:04]} 24. c4 {[%clk 0:00:08]}  Rd4 {[%clk 0:01:01]} 25. Qf3 {[%clk 0:00:09]}  Qd6 {[%clk 0:00:50]} 26. Ne3 {[%clk 0:00:08]}  Rh8 {[%clk 0:00:46]} 27. g3 {[%clk 0:00:08]}  Nxe3 {[%clk 0:00:39]} 28. Bxe3 {[%clk 0:00:08]}  Rxc4 {[%clk 0:00:37]} 29. b3 {[%clk 0:00:08]}  Rc3 {[%clk 0:00:34]} 30. Qb7+ {[%clk 0:00:09]}  Qe7 {[%clk 0:00:34]} 31. Qe4 {[%clk 0:00:09]}  f5 {[%clk 0:00:31]} 32. Qa4 {[%clk 0:00:08]}  Rd8 {[%clk 0:00:24]} 33. Rd1 {[%clk 0:00:07]}  Rcd3 {[%clk 0:00:24]} 34. Rc1 {[%clk 0:00:06]}  R3d5 {[%clk 0:00:22]} 35. Rc2 {[%clk 0:00:06]}  R8d7 {[%clk 0:00:21]} 36. Rfc1 {[%clk 0:00:06]}  Rc7 {[%clk 0:00:22]} 37. Kg2 {[%clk 0:00:06]}  Qd6 {[%clk 0:00:21]} 38. Qb5 {[%clk 0:00:04]}  a6 {[%clk 0:00:20]} 39. Qa5 {[%clk 0:00:04]}  Bd4 {[%clk 0:00:19]} 40. Bxd4 {[%clk 0:00:04]}  Rxd4 {[%clk 0:00:18]} 41. Rxc5 {[%clk 0:00:04]}  Rxc5 {[%clk 0:00:18]} 42. Qxc5 {[%clk 0:00:05]}  Qxc5 {[%clk 0:00:18]} 43. Rxc5 {[%clk 0:00:06]}  Kf6 {[%clk 0:00:15]} 44. Ra5 {[%clk 0:00:05]}  Rd6 {[%clk 0:00:15]} 45. Kf3 {[%clk 0:00:05]}  e5 {[%clk 0:00:15]} 46. Ke3 {[%clk 0:00:05]}  Ke6 {[%clk 0:00:14]} 47. a4 {[%clk 0:00:05]}  Kd7 {[%clk 0:00:14]} 48. b4 {[%clk 0:00:06]}  Kc7 {[%clk 0:00:14]} 49. Rxe5 {[%clk 0:00:06]}  Kb6 {[%clk 0:00:11]} 50. a5+ {[%clk 0:00:06]}  Kc6 {[%clk 0:00:11]} 51. Rc5+ {[%clk 0:00:05]}  Kd7 {[%clk 0:00:11]} 52. b5 {[%clk 0:00:06]}  axb5 {[%clk 0:00:10]} 53. Rxb5 {[%clk 0:00:07]}  Rd1 {[%clk 0:00:08]} 54. Rb7+ {[%clk 0:00:05]}  Ke6 {[%clk 0:00:07]} 55. Rb6+ {[%clk 0:00:06]}  Kf7 {[%clk 0:00:06]} 56. a6 {[%clk 0:00:06]}  Ra1 {[%clk 0:00:06]} 57. Rb7+ {[%clk 0:00:06]}  Kf6 {[%clk 0:00:06]} 58. a7 {[%clk 0:00:06]}  Ra4 {[%clk 0:00:06]} 59. Kf3 {[%clk 0:00:06]}  g5 {[%clk 0:00:05]} 60. Ke3 {[%clk 0:00:06]}  Ke5 {[%clk 0:00:05]} 61. Re7+ {[%clk 0:00:06]}  Kf6 {[%clk 0:00:05]} 62. Rb7 {[%clk 0:00:06]}  Ke5 {[%clk 0:00:05]} 63. Kd3 {[%clk 0:00:07]}  Kd5 {[%clk 0:00:05]} 64. Rg7 {[%clk 0:00:06]}  g4 {[%clk 0:00:04]} 65. Rf7 {[%clk 0:00:05]}  Ke5 {[%clk 0:00:04]} 66. Kc3 {[%clk 0:00:05]}  Ke6 {[%clk 0:00:04]} 67. Rh7 {[%clk 0:00:05]}  Ke5 {[%clk 0:00:04]} 68. Kb3 {[%clk 0:00:06]}  Ra1 {[%clk 0:00:03]} 69. Kb4 {[%clk 0:00:06]}  Ke4 {[%clk 0:00:04]} 70. Rf7 {[%clk 0:00:05]}  Rb1+ {[%clk 0:00:03]} 71. Kc5 {[%clk 0:00:05]}  Ra1 {[%clk 0:00:03]} 72. Kb6 {[%clk 0:00:05]}  Rb1+ {[%clk 0:00:03]} 73. Kc7 {[%clk 0:00:05]}  Ra1 {[%clk 0:00:03]} 74. Kb8 {[%clk 0:00:05]}  Ra2 {[%clk 0:00:01]} 75. a8=Q+ {[%clk 0:00:05]} 1-0


[Site "https://www.chess.com"]

[Event "Titled Tuesday Blitz November 22 Early 2022"]
[White "Sadubayev, Airat"]
[Black "Muminova, Nafisa"]
[WhiteFideId "13713264"]
[BlackFideId "14201526"]
[WhiteElo "2160"]
[BlackElo "2258"]
[Result "0-1"]
[Round "09"]
[TimeControl "180+1"]
[Date "2022.11.23"]
[WhiteClock "0:00:04"]
[BlackClock "0:00:03"]

1. d4 {[%clk 0:03:00]}  Nf6 {[%clk 0:02:55]} 2. c4 {[%clk 0:03:01]}  e6 {[%clk 0:02:55]} 3. Nf3 {[%clk 0:03:00]}  b6 {[%clk 0:02:51]} 4. a3 {[%clk 0:02:52]}  Bb7 {[%clk 0:02:51]} 5. Nc3 {[%clk 0:02:47]}  Be7 {[%clk 0:02:48]} 6. d5 {[%clk 0:02:41]}  O-O {[%clk 0:02:41]} 7. e4 {[%clk 0:02:26]}  exd5 {[%clk 0:02:41]} 8. cxd5 {[%clk 0:02:19]}  d6 {[%clk 0:02:40]} 9. Bd3 {[%clk 0:02:16]}  Nbd7 {[%clk 0:02:39]} 10. O-O {[%clk 0:02:14]}  Nc5 {[%clk 0:02:29]} 11. Bc2 {[%clk 0:02:13]}  a5 {[%clk 0:02:27]} 12. Nd4 {[%clk 0:02:08]}  Re8 {[%clk 0:02:18]} 13. Nf5 {[%clk 0:02:03]}  Bf8 {[%clk 0:02:16]} 14. Re1 {[%clk 0:01:59]}  Nfd7 {[%clk 0:02:08]} 15. Bf4 {[%clk 0:01:41]}  Qf6 {[%clk 0:02:03]} 16. Qg4 {[%clk 0:01:31]}  Ne5 {[%clk 0:01:37]} 17. Qg3 {[%clk 0:01:26]}  Ba6 {[%clk 0:01:25]} 18. Red1 {[%clk 0:01:00]}  Qg6 {[%clk 0:01:04]} 19. Qh3 {[%clk 0:00:40]}  Bc8 {[%clk 0:00:21]} 20. b4 {[%clk 0:00:32]}  axb4 {[%clk 0:00:20]} 21. axb4 {[%clk 0:00:33]}  Rxa1 {[%clk 0:00:20]} 22. Rxa1 {[%clk 0:00:32]}  Ncd7 {[%clk 0:00:17]} 23. Nb5 {[%clk 0:00:23]}  Nf6 {[%clk 0:00:13]} 24. Nxc7 {[%clk 0:00:21]}  Rd8 {[%clk 0:00:13]} 25. Ra8 {[%clk 0:00:17]}  Nh5 {[%clk 0:00:11]} 26. Bg3 {[%clk 0:00:13]}  Ng4 {[%clk 0:00:06]} 27. Nh4 {[%clk 0:00:08]}  Qg5 {[%clk 0:00:06]} 28. f4 {[%clk 0:00:07]}  Nxf4 {[%clk 0:00:02]} 29. Bxf4 {[%clk 0:00:06]}  Qxf4 {[%clk 0:00:03]} 30. Qf3 {[%clk 0:00:02]}  Qc1+ {[%clk 0:00:03]} 31. Qd1 {[%clk 0:00:03]}  Qe3+ {[%clk 0:00:03]} 32. Kh1 {[%clk 0:00:02]}  Nf2+ {[%clk 0:00:03]} 33. Kg1 {[%clk 0:00:03]}  Nxd1+ {[%clk 0:00:03]} 34. Kf1 {[%clk 0:00:04]}  Qf2# {[%clk 0:00:03]} 0-1


[Site "https://www.chess.com"]

[Event "Titled Tuesday Blitz November 22 Early 2022"]
[White "Safin, Robert"]
[Black "Narayanan, Srinath"]
[WhiteFideId "34189120"]
[BlackFideId "5018420"]
[WhiteElo "2253"]
[BlackElo "2459"]
[Result "0-1"]
[Round "09"]
[TimeControl "180+1"]
[Date "2022.11.23"]
[WhiteClock "0:00:10"]
[BlackClock "0:00:47"]

1. e4 {[%clk 0:03:00]}  c6 {[%clk 0:02:58]} 2. d4 {[%clk 0:03:00]}  d5 {[%clk 0:02:58]} 3. exd5 {[%clk 0:03:01]}  cxd5 {[%clk 0:02:58]} 4. c4 {[%clk 0:03:02]}  Nf6 {[%clk 0:02:58]} 5. Nc3 {[%clk 0:03:02]}  Nc6 {[%clk 0:02:58]} 6. Bg5 {[%clk 0:03:02]}  e6 {[%clk 0:02:56]} 7. Nf3 {[%clk 0:03:01]}  Be7 {[%clk 0:02:56]} 8. a3 {[%clk 0:02:58]}  O-O {[%clk 0:02:55]} 9. Bd3 {[%clk 0:02:58]}  dxc4 {[%clk 0:02:55]} 10. Bxc4 {[%clk 0:02:59]}  b6 {[%clk 0:02:55]} 11. O-O {[%clk 0:02:48]}  Bb7 {[%clk 0:02:55]} 12. Ba2 {[%clk 0:02:46]}  Rc8 {[%clk 0:02:53]} 13. Re1 {[%clk 0:02:35]}  h6 {[%clk 0:02:53]} 14. Bh4 {[%clk 0:02:32]}  Na5 {[%clk 0:02:52]} 15. Ne5 {[%clk 0:01:46]}  Nd5 {[%clk 0:02:43]} 16. Bxd5 {[%clk 0:01:14]}  Bxh4 {[%clk 0:02:41]} 17. Bxb7 {[%clk 0:01:15]}  Nxb7 {[%clk 0:02:41]} 18. d5 {[%clk 0:01:15]}  exd5 {[%clk 0:02:38]} 19. Nxd5 {[%clk 0:01:16]}  Rc5 {[%clk 0:02:16]} 20. Nd7 {[%clk 0:01:01]}  Rb5 {[%clk 0:01:38]} 21. a4 {[%clk 0:00:24]}  Rxb2 {[%clk 0:01:35]} 22. g3 {[%clk 0:00:22]}  Bg5 {[%clk 0:01:13]} 23. f4 {[%clk 0:00:20]}  Qxd7 {[%clk 0:01:02]} 24. Nf6+ {[%clk 0:00:14]}  Bxf6 {[%clk 0:01:02]} 25. Qxd7 {[%clk 0:00:15]}  Nc5 {[%clk 0:01:02]} 26. Qc6 {[%clk 0:00:13]}  Bd4+ {[%clk 0:01:01]} 27. Kh1 {[%clk 0:00:11]}  Nd3 {[%clk 0:01:01]} 28. Re8 {[%clk 0:00:11]}  Nf2+ {[%clk 0:00:59]} 29. Kg2 {[%clk 0:00:11]}  Ng4+ {[%clk 0:00:59]} 30. Kh3 {[%clk 0:00:11]}  Rxh2+ {[%clk 0:00:46]} 31. Kxg4 {[%clk 0:00:10]}  f5+ {[%clk 0:00:47]} 0-1


[Site "https://www.chess.com"]